fUST/lending_fUST_20250208
["ID","MTS","AMOUNT","RATE_DAILY","PERIOD"]
[352178472,1738977054502,-151.0,0.00011369,2]
[352178473,1738977054512,-2954.16,0.00011369,2]
[352178474,1738977054522,-500.0,0.00011369,2]
[352178475,1738977054532,-151.0,0.00011369,2]
[352178476,1738977054541,-401.4,0.00011369,2]
[352178477,1738977054551,-1159.47,0.00011369,2]
[352178478,1738977054562,-500.0,0.00011369,2]
[352178479,1738977054572,-500.0,0.00011369,2]
[352178480,1738977054582,-500.0,0.00011369,2]
[352178481,1738977054591,-11686.17,0.00011369,2]
[352178482,1738977054601,-2669.51,0.00011369,2]
[352178483,1738977054611,-605.65,0.00011369,2]
[352178484,1738977054621,-567.21,0.00011369,2]
[352178485,1738977054631,-1151.66,0.00011369,2]
[352178486,1738977054640,-500.0,0.00011369,2]
[352178487,1738977054650,-500.0,0.00011369,2]
[352178488,1738977054660,-901.33,0.00011369,2]
[352178489,1738977054670,-500.0,0.00011369,2]
[352178490,1738977054680,-500.0,0.00011369,2]
[352178491,1738977054690,-3970.74,0.00011369,2]
[352178492,1738977054700,-500.0,0.00011369,2]
[352178493,1738977054710,-500.0,0.00011369,2]
[352178494,1738977054720,-500.0,0.00011369,2]
[352178495,1738977054729,-500.0,0.00011369,2]
[352178496,1738977054739,-500.0,0.00011369,2]
[352178497,1738977054749,-500.0,0.00011369,2]
[352178498,1738977054759,-521.23,0.00011369,2]
[352178499,1738977054768,-500.0,0.00011369,2]
[352178500,1738977054778,-500.0,0.00011369,2]
[352178501,1738977054788,-964.33,0.00011369,2]
[352178502,1738977054797,-1366.37,0.00011369,2]
[352178503,1738977054807,-500.0,0.00011369,2]
[352178504,1738977054816,-500.0,0.00011369,2]
[352178505,1738977054826,-500.0,0.00011369,2]
[352178506,1738977054835,-540.45,0.00011369,2]
[352178507,1738977054845,-3126.73,0.00011369,2]
[352178508,1738977054855,-500.0,0.00011369,2]
[352178509,1738977054864,-500.0,0.00011369,2]
[352178510,1738977054874,-1537.75,0.00011369,2]
[352178511,1738977054884,-38362.59,0.00011369,2]
[352178512,1738977054894,-500.0,0.00011369,2]
[352178513,1738977054904,-500.0,0.00011369,2]
[352178514,1738977054915,-500.0,0.00011369,2]
[352178515,1738977054925,-500.0,0.00011369,2]
[352178516,1738977054935,-500.0,0.00011369,2]
[352178517,1738977054945,-1513.75,0.00011369,2]
[352178518,1738977054955,-1564.86,0.00011369,2]
[352178519,1738977054966,-500.0,0.00011369,2]
[352178520,1738977054975,-507.83850901,0.00011369,2]
[352178521,1738977054985,-500.0,0.00011369,2]
[352178522,1738977054995,-500.0,0.00011369,2]
[352178523,1738977055005,-1455.28,0.00011369,2]
[352178524,1738977055014,-500.0,0.00011369,2]
[352178525,1738977055180,-500.0,0.00011369,2]
[352178526,1738977055190,-596.0,0.00011369,2]
[352178527,1738977055201,-500.0,0.00011369,2]
[352178528,1738977055211,-12973.45,0.00011369,2]
[352178529,1738977055222,-500.0,0.00011369,2]
[352178530,1738977055231,-500.0,0.00011369,2]
[352178531,1738977055241,-151.0,0.00011369,2]
[352178532,1738977055250,-852.11,0.00011369,2]
[352178533,1738977055260,-909.9,0.00011369,2]
[352178534,1738977055269,-154.08046,0.00011369,2]
[352178535,1738977055279,-500.0,0.00011369,2]
[352178536,1738977055288,-235.92,0.00011369,2]
[352178537,1738977055298,-844.43,0.00011369,2]
[352178538,1738977055307,-216.03301622,0.00011369,2]
[352178539,1738977055317,-500.0,0.00011369,2]
[352178540,1738977055328,-1975.06,0.00011369,2]
[352178541,1738977055336,-1270.23,0.00011369,2]
[352178542,1738977055346,-151.0,0.00011369,2]
[352178543,1738977055355,-2489.7,0.00011369,2]
[352178544,1738977055364,-500.0,0.00011369,2]
[352178545,1738977055373,-500.0,0.00011369,2]
[352178546,1738977055382,-2553.52,0.00011369,2]
[352178547,1738977055391,-500.0,0.00011369,2]
[352178548,1738977055401,-500.0,0.00011369,2]
[352178549,1738977055410,-500.0,0.00011369,2]
[352178550,1738977055419,-500.0,0.00011369,2]
[352178551,1738977055428,-500.0,0.00011369,2]
[352178552,1738977055437,-1087.57,0.00011369,2]
[352178553,1738977055446,-743.62,0.00011369,2]
[352178554,1738977055456,-4875.46,0.00011369,2]
[352178555,1738977055465,-1555.92,0.00011369,2]
[352178556,1738977055475,-429.085828,0.00011369,2]
[352178557,1738977055484,-500.0,0.00011369,2]
[352178558,1738977055494,-1127.66,0.00011369,2]
[352178559,1738977055503,-429.085828,0.00011369,2]
[352178560,1738977055512,-500.0,0.00011369,2]
[352178561,1738977055521,-616.73,0.00011369,2]
[352178562,1738977055530,-620.21,0.00011369,2]
[352178563,1738977055540,-500.0,0.00011369,2]
[352178564,1738977055548,-500.0,0.00011369,2]
[352178565,1738977055557,-2791.74,0.00011369,2]
[352178566,1738977055566,-500.0,0.00011369,2]
[352178567,1738977055575,-500.0,0.00011369,2]
[352178568,1738977055585,-500.0,0.00011369,2]
[352178569,1738977055594,-728.48,0.00011369,2]
[352178570,1738977055603,-500.0,0.00011369,2]
[352178571,1738977055613,-500.0,0.00011369,2]
[352178572,1738977055622,-3505.65,0.00011369,2]
[352178573,1738977055632,-500.0,0.00011369,2]
[352178574,1738977055642,-500.0,0.00011369,2]
[352178575,1738977055651,-1048.08,0.00011369,2]
[352178576,1738977055661,-500.0,0.00011369,2]
[352178577,1738977055671,-941.93,0.00011369,2]
[352178578,1738977055680,-500.0,0.00011369,2]
[352178579,1738977055690,-500.0,0.00011369,2]
[352178580,1738977055699,-500.0,0.00011369,2]
[352178581,1738977055709,-526.08,0.00011369,2]
[352178582,1738977055719,-500.0,0.00011369,2]
[352178583,1738977055728,-496.607378,0.00011369,2]
[352178584,1738977055738,-500.0,0.00011369,2]
[352178585,1738977055747,-2065.71624072,0.00011371,2]
[352178586,1738977055756,-151.0,0.000114,2]
[352178587,1738977055765,-151.0,0.000115,2]
[352178588,1738977055775,-151.0,0.000115,2]
[352178589,1738977055785,-783.75877785,0.000115,2]
[352178590,1738977055794,-3463.09080424,0.000115,2]
[352178591,1738977055803,-500.0,0.00011506,2]
[352178592,1738977055812,-500.0,0.00011506,2]
[352178593,1738977055822,-500.0,0.00011506,2]
[352178594,1738977055831,-500.0,0.00011506,2]
[352178595,1738977055840,-500.0,0.00011506,2]
[352178596,1738977055849,-500.0,0.00011506,2]
[352178597,1738977055858,-198.4,0.00011506,2]
[352178598,1738977055867,-289.6,0.00011506,2]
[352178599,1738977055877,-622.88155614,0.00011506,2]
[352178600,1738977055886,-500.0,0.00011506,2]
[352178601,1738977055895,-500.0,0.00011506,2]
[352178602,1738977055905,-500.0,0.00011506,2]
[352178603,1738977055915,-274.396718,0.00011506,2]
[352178604,1738977055924,-500.0,0.00011506,2]
[352178605,1738977055933,-500.0,0.00011506,2]
[352178606,1738977055943,-151.0,0.00011506,2]
[352178607,1738977055953,-500.0,0.00011506,2]
[352178608,1738977055964,-500.0,0.00011506,2]
[352178609,1738977055973,-1165.22,0.00011506,2]
[352178610,1738977055983,-500.0,0.00011506,2]
[352178611,1738977055992,-500.0,0.00011506,2]
[352178612,1738977056001,-507.71,0.00011506,2]
[352178613,1738977056010,-500.0,0.00011506,2]
[352178614,1738977056019,-580.4,0.00011506,2]
[352178615,1738977056028,-500.0,0.00011506,2]
[352178616,1738977056038,-500.0,0.00011506,2]
[352178617,1738977056047,-500.0,0.00011506,2]
[352178618,1738977056055,-500.0,0.00011506,2]
[352178619,1738977056064,-565.89,0.00011506,2]
[352178620,1738977056074,-500.0,0.00011506,2]
[352178621,1738977056083,-151.0,0.00011506,2]
[352178622,1738977056092,-500.0,0.00011506,2]
[352178623,1738977056101,-500.0,0.00011506,2]
[352178624,1738977056110,-500.0,0.00011506,2]
[352178625,1738977056119,-500.0,0.00011506,2]
[352178626,1738977056128,-500.0,0.00011506,2]
[352178627,1738977056138,-500.0,0.00011506,2]
[352178628,1738977056147,-500.0,0.00011506,2]
[352178629,1738977056160,-500.0,0.00011506,2]
[352178630,1738977056179,-500.0,0.00011506,2]
[352178631,1738977056189,-778.01,0.00011506,2]
[352178632,1738977056198,-500.0,0.00011506,2]
[352178633,1738977056207,-240.73582259,0.00011506,2]
[352178634,1738977056217,-500.0,0.00011506,2]
[352178635,1738977056234,-500.0,0.00011506,2]
[352178636,1738977056250,-526.51,0.00011506,2]
[352178637,1738977056263,-500.0,0.00011506,2]
[352178638,1738977056277,-500.0,0.00011506,2]
[352178639,1738977056292,-500.0,0.00011506,2]
[352178640,1738977056307,-500.0,0.00011506,2]
[352178641,1738977056321,-288.09,0.00011506,2]
[352178642,1738977056337,-500.0,0.00011506,2]
[352178643,1738977056350,-500.0,0.00011506,2]
[352178644,1738977056364,-500.0,0.00011506,2]
[352178645,1738977056377,-553.84,0.00011506,2]
[352178646,1738977056393,-209.763172,0.00011506,2]
[352178647,1738977056406,-500.0,0.00011506,2]
[352178648,1738977056417,-500.0,0.00011506,2]
[352178649,1738977056430,-500.0,0.00011506,2]
[352178650,1738977056444,-209.763172,0.00011506,2]
[352178651,1738977056459,-151.0,0.00011506,2]
[352178652,1738977056473,-500.0,0.00011506,2]
[352178653,1738977056489,-939.57,0.00011506,2]
[352178654,1738977056504,-151.0,0.00011506,2]
[352178655,1738977056514,-151.0,0.00011506,2]
[352178656,1738977056525,-500.0,0.00011506,2]
[352178657,1738977056539,-680.04716063,0.00011506,2]
[352178658,1738977056873,-1.01283937,0.00011506,2]
[352178659,1738977056883,-500.0,0.00011506,2]
[352178660,1738977056893,-65.71512901,0.00011506,2]
[352178661,1738977056908,-434.28487099,0.00011506,2]
[352178662,1738977056917,-26.72581552,0.00011506,2]
[352178663,1738977057899,-500.0,0.00010958,2]
[352178664,1738977057908,-1677.65,0.00010958,2]
[352178665,1738977057917,-936.12244737,0.00010959,2]
[352178666,1738977058141,-385.07999708,0.00010958,2]
[352178667,1738977058154,-114.92000292,0.00010958,2]
[352178668,1738977058168,-5415.43755263,0.00010959,2]
[352178669,1738977058178,-500.0,0.00011095,2]
[352178670,1738977058190,-1677.65,0.00011095,2]
[352178671,1738977058200,-500.0,0.00011095,2]
[352178672,1738977058211,-496.607378,0.00011231,2]
[352178673,1738977058220,-151.0,0.00011231,2]
[352178674,1738977058229,-500.0,0.00011232,2]
[352178675,1738977058240,-496.607378,0.00011232,2]
[352178676,1738977058258,-1677.65,0.00011232,2]
[352178677,1738977058269,-500.0,0.00011232,2]
[352178678,1738977058279,-151.0,0.00011232,2]
[352178679,1738977058289,-500.0,0.00011369,2]
[352178680,1738977058300,-496.607378,0.00011369,2]
[352178681,1738977058311,-1677.65,0.00011369,2]
[352178682,1738977058322,-500.0,0.00011369,2]
[352178683,1738977058333,-3.40956838,0.00011506,2]
[352178684,1738977058346,-469.8646161,0.00011506,2]
[352178685,1738977058356,-500.0,0.00011506,2]
[352178686,1738977058365,-500.0,0.00011506,2]
[352178687,1738977058375,-500.0,0.00011506,2]
[352178688,1738977058384,-500.0,0.00011506,2]
[352178689,1738977058394,-500.0,0.00011506,2]
[352178690,1738977058404,-500.0,0.00011506,2]
[352178691,1738977058414,-351.097247,0.00011506,2]
[352178692,1738977058424,-500.0,0.00011506,2]
[352178693,1738977058433,-405.27856475,0.00011506,2]
[352178694,1738977058455,-94.72143525,0.00011506,2]
[352178695,1738977058466,-500.0,0.00011506,2]
[352178696,1738977058476,-351.097247,0.00011506,2]
[352178697,1738977058485,-500.0,0.00011506,2]
[352178698,1738977058495,-945.55,0.00011506,2]
[352178699,1738977058504,-500.0,0.00011506,2]
[352178700,1738977058513,-500.0,0.00011506,2]
[352178701,1738977058523,-500.0,0.00011506,2]
[352178702,1738977058532,-500.0,0.00011506,2]
[352178703,1738977058541,-500.0,0.00011506,2]
[352178704,1738977058551,-500.0,0.00011506,2]
[352178705,1738977058560,-500.0,0.00011506,2]
[352178706,1738977058571,-500.0,0.00011506,2]
[352178707,1738977058580,-500.0,0.00011506,2]
[352178708,1738977058590,-500.0,0.00011506,2]
[352178709,1738977058598,-500.0,0.00011506,2]
[352178710,1738977058608,-500.0,0.00011506,2]
[352178711,1738977058618,-500.0,0.00011506,2]
[352178712,1738977058627,-1249.99,0.00011506,2]
[352178713,1738977058637,-500.0,0.00011506,2]
[352178714,1738977058647,-500.0,0.00011506,2]
[352178715,1738977058656,-1203.1,0.00011506,2]
[352178716,1738977058666,-508.21,0.00011506,2]
[352178717,1738977058676,-258.35330489,0.00011506,2]
[352178718,1738977058685,-500.0,0.00011506,2]
[352178719,1738977058695,-500.0,0.00011506,2]
[352178720,1738977058704,-500.0,0.00011506,2]
[352178721,1738977058716,-500.0,0.00011506,2]
[352178722,1738977058726,-500.0,0.00011506,2]
[352178723,1738977058735,-568.83,0.00011506,2]
[352178724,1738977058745,-258.61389216,0.00011506,2]
[352178725,1738977058754,-500.0,0.00011506,2]
[352178726,1738977058763,-500.0,0.00011506,2]
[352178727,1738977058773,-617.33776272,0.00011506,2]
[352178728,1738977058783,-500.0,0.00011506,2]
[352178729,1738977058792,-500.0,0.00011506,2]
[352178730,1738977058801,-522.33,0.00011506,2]
[352178731,1738977058811,-331.82,0.00011506,2]
[352178732,1738977058821,-500.0,0.00011506,2]
[352178733,1738977058831,-500.0,0.00011506,2]
[352178734,1738977058841,-151.0,0.00011506,2]
[352178735,1738977058851,-500.0,0.00011506,2]
[352178736,1738977058862,-151.0,0.00011506,2]
[352178737,1738977058872,-151.0,0.00011506,2]
[352178738,1738977058881,-500.0,0.00011506,2]
[352178739,1738977058891,-500.0,0.00011506,2]
[352178740,1738977058901,-917.76,0.00011506,2]
[352178741,1738977058911,-500.0,0.00011506,2]
[352178742,1738977058921,-1114.82,0.00011506,2]
[352178743,1738977058931,-655.05,0.00011506,2]
[352178744,1738977058941,-156.05558,0.00011506,2]
[352178745,1738977058951,-500.0,0.00011506,2]
[352178746,1738977058961,-500.0,0.00011506,2]
[352178747,1738977058971,-1113.58,0.00011506,2]
[352178748,1738977058981,-151.0,0.00011506,2]
[352178749,1738977058990,-151.0,0.00011506,2]
[352178750,1738977059000,-152.115537,0.00011506,2]
[352178751,1738977059009,-500.0,0.00011506,2]
[352178752,1738977059019,-500.0,0.00011506,2]
[352178753,1738977059029,-152.115537,0.00011506,2]
[352178754,1738977059039,-653.77,0.00011506,2]
[352178755,1738977059048,-2954.16,0.00011506,2]
[352178756,1738977059059,-500.0,0.00011506,2]
[352178757,1738977059068,-500.0,0.00011506,2]
[352178758,1738977059078,-500.0,0.00011506,2]
[352178759,1738977059088,-500.0,0.00011506,2]
[352178760,1738977059101,-11686.17,0.00011506,2]
[352178761,1738977059111,-605.65,0.00011506,2]
[352178762,1738977059120,-567.21,0.00011506,2]
[352178763,1738977059130,-228.779073,0.00011506,2]
[352178764,1738977059140,-228.779073,0.00011506,2]
[352178765,1738977059149,-1151.66,0.00011506,2]
[352178766,1738977059162,-901.33,0.00011506,2]
[352178767,1738977059172,-500.0,0.00011506,2]
[352178768,1738977059181,-500.0,0.00011506,2]
[352178769,1738977059191,-3970.74,0.00011506,2]
[352178770,1738977059202,-500.0,0.00011506,2]
[352178771,1738977059212,-500.0,0.00011506,2]
[352178772,1738977059222,-500.0,0.00011506,2]
[352178773,1738977059233,-379.68,0.00011506,2]
[352178774,1738977059243,-299.85,0.00011506,2]
[352178775,1738977059253,-459.95489768,0.00011506,2]
[352178776,1738977059263,-500.0,0.00011506,2]
[352178777,1738977059273,-500.0,0.00011506,2]
[352178778,1738977059283,-964.33,0.00011506,2]
[352178779,1738977059294,-1366.37,0.00011506,2]
[352178780,1738977059304,-540.45,0.00011506,2]
[352178781,1738977059313,-3126.73,0.00011506,2]
[352178782,1738977059323,-500.0,0.00011506,2]
[352178783,1738977059333,-1537.75,0.00011506,2]
[352178784,1738977059342,-38362.59,0.00011506,2]
[352178785,1738977059352,-500.0,0.00011506,2]
[352178786,1738977059362,-500.0,0.00011506,2]
[352178787,1738977059372,-500.0,0.00011506,2]
[352178788,1738977059382,-500.0,0.00011506,2]
[352178789,1738977059391,-1513.75,0.00011506,2]
[352178790,1738977059401,-1564.86,0.00011506,2]
[352178791,1738977059411,-500.0,0.00011506,2]
[352178792,1738977059430,-594.61,0.00011506,2]
[352178793,1738977059439,-1455.28,0.00011506,2]
[352178794,1738977059448,-500.0,0.00011506,2]
[352178795,1738977059458,-500.0,0.00011506,2]
[352178796,1738977059468,-596.0,0.00011506,2]
[352178797,1738977059478,-163.82,0.00011506,2]
[352178798,1738977059487,-12973.45,0.00011506,2]
[352178799,1738977059497,-500.0,0.00011506,2]
[352178800,1738977059506,-500.0,0.00011506,2]
[352178801,1738977059516,-151.0,0.00011506,2]
[352178802,1738977059525,-852.11,0.00011506,2]
[352178803,1738977059535,-909.9,0.00011506,2]
[352178804,1738977059544,-500.0,0.00011506,2]
[352178805,1738977059553,-844.43,0.00011506,2]
[352178806,1738977059564,-537.92,0.00011506,2]
[352178807,1738977059574,-1975.06,0.00011506,2]
[352178808,1738977059583,-1270.23,0.00011506,2]
[352178809,1738977059592,-151.0,0.00011506,2]
[352178810,1738977059602,-2489.7,0.00011506,2]
[352178811,1738977059611,-606.11459505,0.00011506,2]
[352178812,1738977059621,-500.0,0.00011506,2]
[352178813,1738977059631,-2553.52,0.00011506,2]
[352178814,1738977059641,-500.0,0.00011506,2]
[352178815,1738977059650,-500.0,0.00011506,2]
[352178816,1738977059660,-500.0,0.00011506,2]
[352178817,1738977059670,-621.51,0.00011506,2]
[352178818,1738977059680,-500.0,0.00011506,2]
[352178819,1738977059689,-1087.57,0.00011506,2]
[352178820,1738977059699,-743.62,0.00011506,2]
[352178821,1738977059709,-4875.46,0.00011506,2]
[352178822,1738977059718,-1555.92,0.00011506,2]
[352178823,1738977059727,-429.085828,0.00011506,2]
[352178824,1738977059737,-577.64,0.00011506,2]
[352178825,1738977059747,-1127.66,0.00011506,2]
[352178826,1738977059756,-429.085828,0.00011506,2]
[352178827,1738977059766,-500.0,0.00011506,2]
[352178828,1738977059775,-616.73,0.00011506,2]
[352178829,1738977059784,-620.21,0.00011506,2]
[352178830,1738977059794,-500.0,0.00011506,2]
[352178831,1738977059803,-2791.74,0.00011506,2]
[352178832,1738977059813,-515.95,0.00011506,2]
[352178833,1738977059823,-500.0,0.00011506,2]
[352178834,1738977059832,-500.0,0.00011506,2]
[352178835,1738977059842,-728.48,0.00011506,2]
[352178836,1738977059852,-500.0,0.00011506,2]
[352178837,1738977059862,-485.59,0.00011506,2]
[352178838,1738977059873,-3505.65,0.00011506,2]
[352178839,1738977059883,-500.0,0.00011506,2]
[352178840,1738977059894,-500.0,0.00011506,2]
[352178841,1738977059905,-1048.08,0.00011506,2]
[352178842,1738977059914,-500.0,0.00011506,2]
[352178843,1738977059924,-941.93,0.00011506,2]
[352178844,1738977059934,-500.0,0.00011506,2]
[352178845,1738977059944,-526.08,0.00011506,2]
[352178846,1738977059954,-496.607378,0.00011506,2]
[352178847,1738977059965,-502.37,0.00011506,2]
[352178848,1738977059974,-500.0,0.00011506,2]
[352178849,1738977059984,-496.607378,0.00011506,2]
[352178850,1738977059993,-1677.65,0.00011506,2]
[352178851,1738977060003,-454.19430919,0.00011506,2]
[352178852,1738977060015,-1000.0,0.00011521,2]
[352178853,1738977060024,-1000.0,0.00011521,2]
[352178854,1738977060034,-273.403871,0.00011521,2]
[352178855,1738977060045,-273.403871,0.00011521,2]
[352178856,1738977060055,-580.83348128,0.00011599,2]
[352178857,1738977060065,-151.0,0.000116,2]
[352178858,1738977060075,-151.0,0.00011643,2]
[352178859,1738977060085,-631.56,0.00011643,2]
[352178860,1738977060095,-500.0,0.00011643,2]
[352178861,1738977060105,-500.0,0.00011643,2]
[352178862,1738977060115,-500.0,0.00011643,2]
[352178863,1738977060125,-500.0,0.00011643,2]
[352178864,1738977060135,-500.0,0.00011643,2]
[352178865,1738977060145,-151.0,0.00011643,2]
[352178866,1738977060155,-500.0,0.00011643,2]
[352178867,1738977060169,-500.0,0.00011643,2]
[352178868,1738977060179,-500.0,0.00011643,2]
[352178869,1738977060188,-439.51425107,0.00011643,2]
[352178870,1738977060198,-151.0,0.00011643,2]
[352178871,1738977060209,-192.12,0.00011643,2]
[352178872,1738977060220,-500.0,0.00011643,2]
[352178873,1738977060229,-1165.22,0.00011643,2]
[352178874,1738977060241,-500.0,0.00011643,2]
[352178875,1738977060251,-507.71,0.00011643,2]
[352178876,1738977060261,-500.0,0.00011643,2]
[352178877,1738977060271,-500.0,0.00011643,2]
[352178878,1738977060281,-500.0,0.00011643,2]
[352178879,1738977060291,-301.3,0.00011643,2]
[352178880,1738977060300,-500.0,0.00011643,2]
[352178881,1738977060309,-159.88,0.00011643,2]
[352178882,1738977060319,-500.0,0.00011643,2]
[352178883,1738977060329,-500.0,0.00011643,2]
[352178884,1738977060339,-597.73,0.00011643,2]
[352178885,1738977060348,-500.0,0.00011643,2]
[352178886,1738977060358,-500.0,0.00011643,2]
[352178887,1738977060368,-778.01,0.00011643,2]
[352178888,1738977060377,-500.0,0.00011643,2]
[352178889,1738977060386,-500.0,0.00011643,2]
[352178890,1738977060395,-513.96,0.00011643,2]
[352178891,1738977060406,-241.97791711,0.00011643,2]
[352178892,1738977060415,-500.0,0.00011643,2]
[352178893,1738977060424,-500.0,0.00011643,2]
[352178894,1738977060434,-500.0,0.00011643,2]
[352178895,1738977060443,-500.0,0.00011643,2]
[352178896,1738977060453,-500.0,0.00011643,2]
[352178897,1738977060463,-553.84,0.00011643,2]
[352178898,1738977060472,-392.17556573,0.00011643,2]
[352178899,1738977060481,-500.0,0.00011643,2]
[352178900,1738977060491,-151.0,0.00011643,2]
[352178901,1738977060501,-939.57,0.00011643,2]
[352178902,1738977060511,-500.0,0.00011643,2]
[352178903,1738977060520,-151.0,0.00011643,2]
[352178904,1738977060530,-681.06,0.00011643,2]
[352178905,1738977060539,-500.0,0.00011643,2]
[352178906,1738977060549,-500.0,0.00011643,2]
[352178907,1738977060560,-500.0,0.00011643,2]
[352178908,1738977060570,-500.0,0.00011643,2]
[352178909,1738977060580,-500.0,0.00011643,2]
[352178910,1738977060590,-500.0,0.00011643,2]
[352178911,1738977060600,-500.0,0.00011643,2]
[352178912,1738977060610,-500.0,0.00011643,2]
[352178913,1738977060619,-500.0,0.00011643,2]
[352178914,1738977060629,-500.0,0.00011643,2]
[352178915,1738977060768,-500.0,0.00011643,2]
[352178916,1738977060800,-500.0,0.00011643,2]
[352178917,1738977060809,-500.0,0.00011643,2]
[352178918,1738977060819,-945.55,0.00011643,2]
[352178919,1738977060829,-500.0,0.00011643,2]
[352178920,1738977060838,-500.0,0.00011643,2]
[352178921,1738977060847,-500.0,0.00011643,2]
[352178922,1738977060857,-434.64,0.00011643,2]
[352178923,1738977060867,-500.0,0.00011643,2]
[352178924,1738977060876,-500.0,0.00011643,2]
[352178925,1738977060886,-500.0,0.00011643,2]
[352178926,1738977060895,-1249.99,0.00011643,2]
[352178927,1738977060905,-500.0,0.00011643,2]
[352178928,1738977060915,-1203.1,0.00011643,2]
[352178929,1738977060924,-500.0,0.00011643,2]
[352178930,1738977060933,-500.0,0.00011643,2]
[352178931,1738977060943,-500.0,0.00011643,2]
[352178932,1738977060952,-568.83,0.00011643,2]
[352178933,1738977060962,-500.0,0.00011643,2]
[352178934,1738977060971,-397.88625519,0.00011643,2]
[352178935,1738977060982,-500.0,0.00011643,2]
[352178936,1738977060991,-238.14,0.00011643,2]
[352178937,1738977061000,-500.0,0.00011643,2]
[352178938,1738977061011,-151.0,0.00011643,2]
[352178939,1738977061020,-151.0,0.00011643,2]
[352178940,1738977061030,-151.0,0.00011643,2]
[352178941,1738977061039,-384.26221178,0.00011643,2]
[352178942,1738977061048,-500.0,0.00011643,2]
[352178943,1738977061057,-917.76,0.00011643,2]
[352178944,1738977061067,-500.0,0.00011643,2]
[352178945,1738977061077,-1114.82,0.00011643,2]
[352178946,1738977061087,-655.05,0.00011643,2]
[352178947,1738977061096,-500.0,0.00011643,2]
[352178948,1738977061105,-227.4,0.00011643,2]
[352178949,1738977061114,-1113.58,0.00011643,2]
[352178950,1738977061123,-151.0,0.00011643,2]
[352178951,1738977061133,-151.0,0.00011643,2]
[352178952,1738977061142,-500.0,0.00011643,2]
[352178953,1738977061153,-500.0,0.00011643,2]
[352178954,1738977061172,-653.77,0.00011643,2]
[352178955,1738977061189,-151.0,0.00011643,2]
[352178956,1738977061198,-2954.16,0.00011643,2]
[352178957,1738977061208,-500.0,0.00011643,2]
[352178958,1738977061219,-151.0,0.00011643,2]
[352178959,1738977061229,-500.0,0.00011643,2]
[352178960,1738977061241,-500.0,0.00011643,2]
[352178961,1738977061251,-11686.17,0.00011643,2]
[352178962,1738977061260,-605.65,0.00011643,2]
[352178963,1738977061270,-567.21,0.00011643,2]
[352178964,1738977061279,-228.779073,0.00011643,2]
[352178965,1738977061288,-1151.66,0.00011643,2]
[352178966,1738977061298,-228.779073,0.00011643,2]
[352178967,1738977061307,-901.33,0.00011643,2]
[352178968,1738977061317,-3970.74,0.00011643,2]
[352178969,1738977061326,-279.74,0.00011643,2]
[352178970,1738977061336,-500.0,0.00011643,2]
[352178971,1738977061346,-639.96339519,0.00011643,2]